fUSD/lending_fUSD_20250322
["ID","MTS","AMOUNT","RATE_DAILY","PERIOD"]
[356531623,1742626235496,-500.0,0.00046575,120]
[356531624,1742626235505,-500.0,0.00046575,120]
[356531625,1742626235515,-500.0,0.00046575,120]
[356531626,1742626235525,-500.0,0.00046575,120]
[356531627,1742626235535,-500.0,0.00046575,120]
[356531628,1742626235546,-1785.63,0.00046575,120]
[356531629,1742626235555,-500.0,0.00046575,120]
[356531630,1742626235565,-646.05,0.00046575,120]
[356531631,1742626235574,-1144.59,0.00046575,120]
[356531632,1742626235584,-500.0,0.00046575,120]
[356531633,1742626235593,-898.45,0.00046575,120]
[356531634,1742626235602,-500.0,0.00046575,120]
[356531635,1742626235611,-500.0,0.00046575,120]
[356531636,1742626235620,-1837.12,0.00046575,120]
[356531637,1742626235632,-500.0,0.00046575,120]
[356531638,1742626235641,-831.07,0.00046575,120]
[356531639,1742626235651,-500.0,0.00046575,120]
[356531640,1742626235661,-567.43,0.00046575,120]
[356531641,1742626235671,-946.77,0.00046575,120]
[356531642,1742626235680,-672.77,0.00046575,120]
[356531643,1742626235689,-1108.78,0.00046575,120]
[356531644,1742626235700,-500.0,0.00046575,120]
[356531645,1742626235708,-500.0,0.00046575,120]
[356531646,1742626235717,-915.57,0.00046575,120]
[356531647,1742626235727,-1580.21,0.00046575,10]
[356531648,1742626235736,-1274.84,0.00046575,120]
[356531649,1742626235745,-1929.09,0.00046575,120]
[356531650,1742626235754,-500.0,0.00046575,120]
[356531651,1742626235763,-1302.39,0.00046575,120]
[356531652,1742626235772,-516.75,0.00046575,120]
[356531653,1742626235781,-500.0,0.00046575,120]
[356531654,1742626235790,-756.12,0.00046575,120]
[356531655,1742626235798,-2463.8,0.00046575,120]
[356531656,1742626235807,-1847.18,0.00046575,120]
[356531657,1742626235816,-596.26,0.00046575,120]
[356531658,1742626235825,-500.0,0.00046575,120]
[356531659,1742626235834,-500.0,0.00046575,120]
[356531660,1742626235843,-500.0,0.00046575,120]
[356531661,1742626235852,-500.0,0.00046575,120]
[356531662,1742626235861,-2004.22,0.00046575,120]
[356531663,1742626235870,-1280.4,0.00046575,120]
[356531664,1742626235879,-1157.37,0.00046575,120]
[356531665,1742626235887,-1598.42,0.00046575,120]
[356531666,1742626235897,-966.21,0.00046575,120]
[356531667,1742626235907,-500.0,0.00046575,120]
[356531668,1742626235916,-500.0,0.00046575,120]
[356531669,1742626235926,-1868.63,0.00046575,120]
[356531670,1742626235936,-563.81,0.00046575,120]
[356531671,1742626235946,-500.0,0.00046575,120]
[356531672,1742626235956,-1115.54,0.00046575,120]
[356531673,1742626235965,-500.0,0.00046575,120]
[356531674,1742626235975,-500.0,0.00046575,120]
[356531675,1742626235984,-500.0,0.00046575,120]
[356531676,1742626235995,-500.0,0.00046575,120]
[356531677,1742626236005,-1406.1,0.00046575,120]
[356531678,1742626236014,-769.48,0.00046575,120]
[356531679,1742626236024,-530.37,0.00046575,120]
[356531680,1742626236034,-893.66,0.00046575,120]
[356531681,1742626236045,-694.47,0.00046575,120]
[356531682,1742626236055,-805.66,0.00046575,120]
[356531683,1742626236064,-656.72,0.00046575,120]
[356531684,1742626236074,-534.53,0.00046575,120]
[356531685,1742626236084,-500.0,0.00046575,120]
[356531686,1742626236094,-500.0,0.00046575,30]
[356531687,1742626236103,-906.62,0.00046575,120]
[356531688,1742626236113,-500.0,0.00046575,120]
[356531689,1742626236123,-500.0,0.00046575,120]
[356531690,1742626236133,-500.0,0.00046575,120]
[356531691,1742626236142,-1000.0,0.00046575,120]
[356531692,1742626236153,-1224.27,0.00046575,120]
[356531693,1742626236164,-880.17,0.00046575,120]
[356531694,1742626236174,-500.0,0.00046575,120]
[356531695,1742626236185,-2070.0,0.00046575,120]
[356531696,1742626236195,-500.0,0.00046575,120]
[356531697,1742626236205,-649.77,0.00046575,120]
[356531698,1742626236215,-500.0,0.00046575,120]
[356531699,1742626236225,-500.0,0.00046575,120]
[356531700,1742626236236,-777.1,0.00046575,120]
[356531701,1742626236245,-500.0,0.00046575,120]
[356531702,1742626236255,-569.12,0.00046575,120]
[356531703,1742626236265,-151.0,0.00046575,14]
[356531704,1742626236274,-500.0,0.00046575,120]
[356531705,1742626236284,-1098.25,0.00046575,120]
[356531706,1742626236293,-500.0,0.00046575,120]
[356531707,1742626236303,-500.0,0.00046575,120]
[356531708,1742626236312,-566.63,0.00046575,120]
[356531709,1742626236321,-911.39,0.00046575,120]
[356531710,1742626236332,-500.0,0.00046575,120]
[356531711,1742626236341,-516.09,0.00046575,120]
[356531712,1742626236351,-659.59,0.00046575,120]
[356531713,1742626236361,-316.82,0.00046575,120]
[356531714,1742626236371,-500.0,0.00046575,120]
[356531715,1742626236380,-1024.65,0.00046575,120]
[356531716,1742626236389,-500.0,0.00046575,120]
[356531717,1742626236399,-836.61,0.00046575,120]
[356531718,1742626236408,-850.98,0.00046575,120]
[356531719,1742626236418,-1340.73,0.00046575,120]
[356531720,1742626236428,-500.0,0.00046575,120]
[356531721,1742626236437,-742.19,0.00046575,120]
[356531722,1742626236447,-500.0,0.00046575,120]
[356531723,1742626236457,-500.0,0.00046575,120]
[356531724,1742626236469,-500.0,0.00046575,120]
[356531725,1742626236479,-501.45,0.00046575,120]
[356531726,1742626236488,-1485.53,0.00046575,120]
[356531727,1742626236498,-516.61,0.00046575,120]
[356531728,1742626236507,-1662.57,0.00046575,120]
[356531729,1742626236517,-500.0,0.00046575,120]
[356531730,1742626236527,-500.0,0.00046575,120]
[356531731,1742626236536,-500.0,0.00046575,120]
[356531732,1742626236546,-1126.29,0.00046575,120]
[356531733,1742626236556,-500.0,0.00046575,120]
[356531734,1742626236565,-1189.39,0.00046575,120]
[356531735,1742626236575,-500.0,0.00046575,120]
[356531736,1742626236585,-517.7,0.00046575,120]
[356531737,1742626236595,-947.31,0.00046575,120]
[356531738,1742626236605,-500.0,0.00046575,120]
[356531739,1742626236615,-500.0,0.00046575,120]
[356531740,1742626236625,-500.0,0.00046575,120]
[356531741,1742626236635,-500.0,0.00046575,120]
[356531742,1742626236645,-500.0,0.00046575,120]
[356531743,1742626236655,-516.86,0.00046575,120]
[356531744,1742626236664,-500.0,0.00046575,120]
[356531745,1742626236674,-1201.61,0.00046575,120]
[356531746,1742626236684,-487.00153474,0.00046575,120]
[356531747,1742626236693,-557.21,0.00046575,120]
[356531748,1742626236703,-500.0,0.00046575,120]
[356531749,1742626236714,-500.0,0.00046575,120]
[356531750,1742626236723,-609.99,0.00046575,120]
[356531751,1742626236732,-613.45,0.00046575,120]
[356531752,1742626236742,-500.0,0.00046575,120]
[356531753,1742626236752,-582.4,0.00046575,120]
[356531754,1742626236762,-500.0,0.00046575,120]
[356531755,1742626236772,-580.46,0.00046575,120]
[356531756,1742626236782,-580.46,0.00046575,120]
[356531757,1742626236791,-500.0,0.00046575,120]
[356531758,1742626236801,-500.0,0.00046575,120]
[356531759,1742626236811,-500.0,0.00046575,120]
[356531760,1742626236822,-30624.5,0.00046575,120]
[356531761,1742626236832,-858.09,0.00046575,120]
[356531762,1742626236841,-889.0,0.00046575,120]
[356531763,1742626236851,-500.0,0.00046575,120]
[356531764,1742626236861,-820.75,0.00046575,120]
[356531765,1742626236871,-559.88,0.00046575,120]
[356531766,1742626236881,-897.87,0.00046575,120]
[356531767,1742626236890,-633.11,0.00046575,120]
[356531768,1742626236900,-500.0,0.00046575,120]
[356531769,1742626236910,-500.0,0.00046575,120]
[356531770,1742626236920,-854.22,0.00046575,120]
[356531771,1742626236930,-500.0,0.00046575,120]
[356531772,1742626236941,-500.0,0.00046575,120]
[356531773,1742626236951,-646.85,0.00046575,120]
[356531774,1742626236961,-561.38,0.00046575,120]
[356531775,1742626236970,-834.05,0.00046575,120]
[356531776,1742626236980,-500.0,0.00046575,120]
[356531777,1742626236990,-550.03,0.00046575,120]
[356531778,1742626237000,-1148.55,0.00046575,120]
[356531779,1742626237011,-500.0,0.00046575,120]
[356531780,1742626237020,-721.24,0.00046575,120]
[356531781,1742626237031,-603.48,0.00046575,120]
[356531782,1742626237041,-5563.21,0.00046575,2]
[356531783,1742626237051,-2833.94,0.00046575,120]
[356531784,1742626237061,-500.0,0.00046575,120]
[356531785,1742626237071,-873.02,0.00046575,120]
[356531786,1742626237081,-500.0,0.00046575,120]
[356531787,1742626237091,-501.63,0.00046575,120]
[356531788,1742626237101,-520.47,0.00046575,120]
[356531789,1742626237111,-1358.0,0.00046575,120]
[356531790,1742626237121,-824.63,0.00046575,120]
[356531791,1742626237131,-1322.76,0.00046575,120]
[356531792,1742626237141,-2044.02,0.00046575,120]
[356531793,1742626237151,-661.76,0.00046575,120]
[356531794,1742626237161,-511.74,0.00046575,120]
[356531795,1742626237170,-955.66,0.00046575,120]
[356531796,1742626237180,-500.0,0.00046575,120]
[356531797,1742626237191,-1421.9,0.00046575,120]
[356531798,1742626237200,-500.0,0.00046575,120]
[356531799,1742626237210,-1788.03,0.00046575,120]
[356531800,1742626237220,-500.0,0.00046575,120]
[356531801,1742626237230,-500.0,0.00046575,120]
[356531802,1742626237240,-518.93,0.00046575,120]
[356531803,1742626237250,-1265.68,0.00046575,120]
[356531804,1742626237260,-500.0,0.00046575,120]
[356531805,1742626237270,-566.57,0.00046575,120]
[356531806,1742626237280,-2517.65,0.00046575,120]
[356531807,1742626237290,-839.72,0.00046575,120]
[356531808,1742626237300,-500.0,0.00046575,120]
[356531809,1742626237310,-500.0,0.00046575,120]
[356531810,1742626237320,-1125.59,0.00046575,120]
[356531811,1742626237331,-500.0,0.00046575,120]
[356531813,1742626237340,-597.38519196,0.00046575,120]
[356531815,1742626237350,-500.0,0.00046575,120]
[356531816,1742626237360,-500.0,0.00046575,120]
[356531817,1742626237369,-1127.81,0.00046575,120]
[356531818,1742626237379,-500.0,0.00046575,120]
[356531819,1742626237389,-1830.71,0.00046575,120]
[356531820,1742626237399,-596.01547535,0.00046575,120]
[356531821,1742626237409,-2827.56,0.00046575,120]
[356531823,1742626237419,-1026.99,0.00046575,120]
[356531825,1742626237428,-1103.01,0.00046575,120]
[356531827,1742626237438,-500.0,0.00046575,120]
[356531829,1742626237448,-2392.76,0.00046575,120]
[356531831,1742626237458,-267.8,0.00046575,7]
[356531833,1742626237472,-500.0,0.00046575,120]
[356531835,1742626237481,-882.33,0.00046575,120]
[356531836,1742626237491,-500.0,0.00046575,120]
[356531837,1742626237501,-500.0,0.00046575,120]
[356531838,1742626237511,-3500.0,0.00046575,10]
[356531839,1742626237521,-500.0,0.00046575,120]
[356531840,1742626237531,-500.0,0.00046575,120]
[356531841,1742626237541,-1434.31,0.00046575,120]
[356531842,1742626237550,-500.0,0.00046575,120]
[356531843,1742626237560,-726.55,0.00046575,120]
[356531844,1742626237570,-500.0,0.00046575,120]
[356531845,1742626237581,-500.0,0.00046575,120]
[356531846,1742626237591,-530.66,0.00046575,120]
[356531847,1742626237601,-500.0,0.00046575,120]
[356531848,1742626237612,-734.04,0.00046575,120]
[356531849,1742626237622,-4390.95,0.00046575,120]
[356531850,1742626237632,-1467.65,0.00046575,120]
[356531851,1742626237642,-1438.86,0.00046575,120]
[356531852,1742626237651,-1687.71,0.00046575,120]
[356531853,1742626237661,-917.36,0.00046575,120]
[356531854,1742626237671,-500.0,0.00046575,120]
[356531855,1742626237681,-500.0,0.00046575,120]
[356531856,1742626237692,-826.28,0.00046575,120]
[356531857,1742626237702,-500.0,0.00046575,120]
[356531858,1742626237712,-1035.96,0.00046575,120]
[356531859,1742626237722,-500.0,0.00046575,120]
[356531860,1742626237732,-627.28,0.00046575,120]
[356531861,1742626237742,-2053.68,0.00046575,120]
[356531862,1742626237753,-1472.14,0.00046575,120]
[356531863,1742626237764,-780.56,0.00046575,120]
[356531864,1742626237775,-500.0,0.00046575,120]
[356531865,1742626237785,-2543.35,0.00046575,120]
[356531866,1742626237795,-500.0,0.00046575,120]
[356531867,1742626237805,-219.15427296,0.00046575,120]
[356531868,1742626237815,-789.63,0.00046575,120]
[356531869,1742626237825,-6824.6,0.00046575,120]
[356531870,1742626237835,-500.0,0.00046575,120]
[356531871,1742626237845,-2243.45,0.00046575,120]
[356531872,1742626237854,-6583.38,0.00046575,120]
[356531874,1742626237864,-764.13,0.00046575,120]
[356531876,1742626237875,-1188.13,0.00046575,120]
[356531878,1742626237884,-1586.61,0.00046575,120]
[356531880,1742626237894,-500.0,0.00046575,120]
[356531882,1742626237904,-500.0,0.00046575,120]
[356531884,1742626237914,-619.72,0.00046575,120]
[356531886,1742626237923,-652.85,0.00046575,120]
[356531888,1742626237933,-1061.74,0.00046575,120]
[356531890,1742626237943,-500.0,0.00046575,120]
[356531892,1742626237953,-500.0,0.00046575,120]
[356531894,1742626237963,-1220.55,0.00046575,120]
[356531896,1742626237973,-500.0,0.00046575,30]
[356531899,1742626237983,-2607.01,0.00046575,100]
[356531901,1742626237992,-685.79,0.00046575,120]
[356531902,1742626238004,-1778.77,0.00046575,120]
[356531903,1742626238013,-511.56,0.00046575,120]
[356531904,1742626238023,-510.97,0.00046575,120]
[356531905,1742626238032,-1322.34,0.00046575,120]
[356531906,1742626238042,-500.0,0.00046575,120]
[356531907,1742626238052,-816.62,0.00046575,120]
[356531908,1742626238062,-653.35,0.00046575,120]
[356531909,1742626238072,-1101.39,0.00046575,120]
[356531910,1742626238083,-838.12,0.00046575,120]
[356531911,1742626238092,-574.68,0.00046575,120]
[356531912,1742626238102,-738.14,0.00046575,120]
[356531913,1742626238112,-1289.39,0.00046575,120]
[356531914,1742626238122,-2046.66,0.00046575,120]
[356531915,1742626238132,-1213.04,0.00046575,120]
[356531916,1742626238142,-1000.0,0.00046575,120]
[356531917,1742626238152,-940.06,0.00046575,120]
[356531918,1742626238162,-500.0,0.00046575,120]
[356531919,1742626238172,-500.0,0.00046575,120]
[356531920,1742626238182,-500.0,0.00046575,120]
[356531921,1742626238192,-151.0,0.00046575,30]
[356531922,1742626238437,-151.0,0.00046575,30]
[356531923,1742626238455,-151.0,0.00046575,30]
[356531924,1742626238466,-1148.51,0.00046575,120]
[356531925,1742626238477,-500.0,0.00046575,120]
[356531926,1742626238486,-151.0,0.00046575,30]
[356531927,1742626238495,-500.0,0.00046575,120]
[356531928,1742626238504,-1765.01,0.00046575,7]
[356531929,1742626238514,-151.0,0.00046575,30]
[356531930,1742626238523,-151.0,0.00046575,30]
[356531931,1742626238532,-151.0,0.00046575,30]
[356531932,1742626238541,-655.96,0.00046575,120]
[356531933,1742626238550,-3667.04,0.00046575,120]
[356531934,1742626238560,-1354.98,0.00046575,120]
[356531935,1742626238570,-500.0,0.00046575,120]
[356531936,1742626238579,-753.48,0.00046575,120]
[356531937,1742626238589,-500.0,0.00046575,120]
[356531938,1742626238598,-500.0,0.00046575,120]
[356531939,1742626238607,-1675.91,0.00046575,120]
[356531940,1742626238617,-500.0,0.00046575,120]
[356531941,1742626238626,-689.47,0.00046575,120]
[356531942,1742626238636,-500.0,0.00046575,120]
[356531943,1742626238645,-804.55,0.00046575,120]
[356531944,1742626238655,-500.0,0.00046575,120]
[356531945,1742626238664,-500.0,0.00046575,120]
[356531946,1742626238673,-500.0,0.00046575,120]
[356531947,1742626238683,-771.11,0.00046575,120]
[356531948,1742626238692,-500.0,0.00046575,120]
[356531949,1742626238701,-4259.07,0.00046575,120]
[356531950,1742626238710,-500.0,0.00046575,120]
[356531951,1742626238720,-500.0,0.00046575,120]
[356531952,1742626238729,-977.42,0.00046575,120]
[356531953,1742626238738,-1276.99,0.00046575,120]
[356531954,1742626238748,-509.79,0.00046575,120]
[356531955,1742626238757,-1335.59,0.00046575,120]
[356531956,1742626238766,-888.81,0.00046575,120]
[356531957,1742626238776,-500.0,0.00046575,120]
[356531958,1742626238785,-500.0,0.00046575,120]
[356531959,1742626238795,-500.0,0.00046575,120]
[356531960,1742626238804,-500.0,0.00046575,120]
[356531961,1742626238813,-556.92,0.00046575,120]
[356531962,1742626238823,-500.0,0.00046575,120]
[356531963,1742626238832,-500.0,0.00046575,120]
[356531964,1742626238842,-500.0,0.00046575,120]
[356531965,1742626238851,-500.0,0.00046575,120]
[356531966,1742626238860,-500.0,0.00046575,120]
[356531967,1742626238870,-1369.52,0.00046575,120]
[356531968,1742626238879,-812.97,0.00046575,120]
[356531969,1742626238889,-500.0,0.00046575,120]
[356531970,1742626238898,-500.0,0.00046575,120]
[356531971,1742626238908,-1872.4,0.00046575,120]
[356531972,1742626238917,-721.1,0.00046575,120]
[356531973,1742626238926,-694.19,0.00046575,120]
[356531974,1742626238936,-500.0,0.00046575,120]
[356531975,1742626238945,-500.0,0.00046575,120]
[356531976,1742626238954,-1383.31,0.00046575,120]
[356531977,1742626238964,-176.82513065,0.00046575,120]
[356531978,1742626238974,-2490.28,0.00046575,120]
[356531979,1742626238983,-897.34,0.00046575,120]
[356531980,1742626238992,-500.0,0.00046575,120]
[356531981,1742626239002,-1365.39,0.00046575,120]
[356531982,1742626239012,-1161.62,0.00046575,120]
[356531983,1742626239021,-656.23,0.00046575,120]
[356531984,1742626239030,-1328.17,0.00046575,120]
[356531985,1742626239040,-762.19,0.00046575,120]
[356531986,1742626239049,-2809.05,0.00046575,120]
[356531987,1742626239058,-900.77,0.00046575,120]
[356531988,1742626239068,-500.0,0.00046575,120]
[356531989,1742626239078,-500.0,0.00046575,120]
[356531990,1742626239087,-500.0,0.00046575,120]
[356531991,1742626239096,-500.0,0.00046575,120]
[356531992,1742626239106,-500.0,0.00046575,120]
[356531993,1742626239115,-518.82,0.00046575,120]
[356531994,1742626239124,-500.0,0.00046575,120]
[356531995,1742626239134,-664.89,0.00046575,120]
[356531996,1742626239143,-2093.58,0.00046575,120]
[356531997,1742626239153,-942.89,0.00046575,120]
[356531998,1742626239164,-2416.46,0.00046575,120]
[356531999,1742626239175,-1956.81,0.00046575,120]
[356532000,1742626239184,-500.0,0.00046575,120]
[356532001,1742626239193,-500.0,0.00046575,120]
[356532002,1742626239202,-500.0,0.00046575,120]
[356532003,1742626239212,-222.47438674,0.00046575,120]
[356532004,1742626239221,-500.0,0.00046575,120]
[356532005,1742626239230,-500.0,0.00046575,120]
[356532006,1742626239240,-4691.6,0.00046575,120]
[356532007,1742626239249,-1170.25,0.00046575,120]
[356532008,1742626239259,-998.39,0.00046575,120]
[356532009,1742626239269,-4101.3,0.00046575,120]
[356532010,1742626239279,-2323.02,0.00046575,120]
[356532011,1742626239288,-500.0,0.00046575,120]
[356532012,1742626239297,-1000.0,0.00046575,15]
[356532014,1742626239306,-1000.0,0.00046575,15]
[356532016,1742626239316,-1000.0,0.00046575,15]
[356532018,1742626239325,-1000.0,0.00046575,15]
[356532019,1742626239335,-1051.0,0.00046575,15]
[356532020,1742626239344,-284.18,0.00046593,2]
[356532021,1742626239353,-150.0,0.000466,2]
[356532022,1742626239363,-293.554056,0.000466,14]
[356532024,1742626239372,-256.46653952,0.00046619,120]
[356532026,1742626239382,-151.0,0.00046623,14]
[356532028,1742626239392,-2110.0,0.00046623,30]
[356532030,1742626239401,-150.0,0.00046633,30]
[356532032,1742626239411,-233.48,0.00046634,2]
[356532034,1742626239420,-150.67,0.00046634,2]
[356532036,1742626239430,-150.0,0.00046669,30]
[356532038,1742626239439,-284.18,0.00046689,2]
[356532039,1742626239448,-256.46653952,0.00046691,120]
[356532040,1742626239457,-303.03,0.00046712,30]
[356532041,1742626239470,-150.0,0.00046712,30]
[356532042,1742626239479,-150.0,0.00046712,30]
[356532043,1742626239489,-150.0,0.00046719,30]
[356532044,1742626239498,-233.48,0.00046728,2]
[356532045,1742626239507,-165.60556428,0.00046749,25]
[356532046,1742626239516,-256.46653952,0.00046763,120]
[356532047,1742626239526,-284.18,0.00046784,2]
[356532048,1742626239535,-173.63,0.00046787,2]
[356532049,1742626239544,-150.0,0.0004679,30]
[356532050,1742626239554,-1217.0,0.000468,7]
[356532051,1742626239563,-152.31,0.000468,2]
[356532052,1742626239572,-150.0,0.00046804,30]
[356532053,1742626239582,-233.48,0.00046823,2]
[356532054,1742626239591,-256.46653952,0.00046836,120]
[356532055,1742626239600,-302.22417,0.0004684,30]
[356532056,1742626239610,-156.51206173,0.0004684,15]
[356532057,1742626239619,-150.0,0.00046847,7]
[356532058,1742626239629,-295.3733853,0.00046847,2]
[356532059,1742626239638,-156.9283719,0.00046847,2]
[356532060,1742626239647,-1633.2037837,0.00046847,2]
[356532061,1742626239656,-1000.0,0.00046848,120]
[356532062,1742626239666,-803.37380107,0.00046848,120]
[356532063,1742626239675,-500.0,0.00046848,120]
[356532064,1742626239684,-500.0,0.00046848,120]
[356532065,1742626239693,-500.0,0.00046848,120]
[356532066,1742626239703,-161.41815733,0.00046848,120]
[356532067,1742626239712,-151.0,0.00046848,14]
[356532068,1742626239722,-150.0,0.00046848,120]
[356532069,1742626239732,-500.0,0.00046848,120]
[356532070,1742626239741,-500.0,0.00046848,120]
[356532071,1742626239751,-500.0,0.00046848,120]
[356532072,1742626239760,-580.46,0.00046848,120]
[356532073,1742626239770,-580.46,0.00046848,120]
[356532074,1742626239779,-500.0,0.00046848,120]
[356532075,1742626239790,-500.0,0.00046848,120]
[356532076,1742626239799,-500.0,0.00046848,120]
[356532077,1742626239808,-2000.0,0.00046848,120]
[356532078,1742626239817,-2000.0,0.00046848,120]
[356532079,1742626239826,-2000.0,0.00046848,120]
[356532080,1742626239836,-2000.0,0.00046848,120]
[356532081,1742626239845,-2000.0,0.00046848,120]
[356532082,1742626239854,-2000.0,0.00046848,120]
[356532083,1742626239864,-2000.0,0.00046848,120]
[356532084,1742626239873,-2000.0,0.00046848,120]
[356532085,1742626239883,-2000.0,0.00046848,120]
[356532086,1742626239892,-2000.0,0.00046848,120]
[356532087,1742626239901,-2000.0,0.00046848,120]
[356532088,1742626239910,-2000.0,0.00046848,120]
[356532089,1742626239920,-2000.0,0.00046848,120]
[356532090,1742626239930,-2000.0,0.00046848,120]
[356532091,1742626239939,-2000.0,0.00046848,120]
[356532092,1742626239949,-1163.26032346,0.00046848,120]
[356532093,1742626239959,-1160.0,0.00046849,7]
[356532094,1742626239968,-500.0,0.00046849,120]
[356532095,1742626239978,-500.0,0.00046849,120]
[356532096,1742626239988,-1281.507944,0.00046849,120]
[356532097,1742626239997,-500.0,0.00046849,120]
[356532098,1742626240006,-857.21,0.00046849,120]
[356532099,1742626240016,-1034.46,0.00046849,120]
[356532100,1742626240026,-507.78372106,0.00046849,120]
[356532101,1742626240036,-629.17108413,0.00046849,120]
[356532102,1742626240045,-1039.274632,0.00046849,120]
[356532103,1742626240055,-548.93,0.00046849,120]
[356532104,1742626240065,-550.61445117,0.00046849,120]
[356532105,1742626240074,-500.0,0.00046849,120]
[356532106,1742626240084,-795.21,0.00046849,120]
[356532107,1742626240093,-500.0,0.00046849,20]
[356532108,1742626240103,-500.0,0.00046849,120]
[356532109,1742626240113,-485.92767997,0.00046849,120]
[356532110,1742626240122,-500.0,0.00046849,120]
[356532111,1742626240132,-500.0,0.00046849,120]
[356532112,1742626240142,-500.0,0.00046849,120]
[356532113,1742626240151,-500.0,0.00046849,120]
[356532114,1742626240160,-500.0,0.00046849,120]
[356532115,1742626240170,-500.0,0.00046849,120]
[356532116,1742626240180,-500.0,0.00046849,120]
[356532117,1742626240189,-503.84259242,0.00046849,120]
[356532118,1742626240199,-1360.67,0.00046849,120]
[356532119,1742626240208,-500.0,0.00046849,120]
[356532120,1742626240218,-642.84,0.00046849,120]
[356532121,1742626240228,-562.04,0.00046849,120]
[356532122,1742626240238,-500.0,0.00046849,120]
[356532123,1742626240247,-500.0,0.00046849,120]
[356532124,1742626240257,-620.37,0.00046849,120]
[356532125,1742626240266,-500.0,0.00046849,120]
[356532126,1742626240275,-552.63,0.00046849,120]
[356532127,1742626240285,-500.0,0.00046849,120]
[356532128,1742626240294,-1318.18,0.00046849,120]
[356532130,1742626240304,-552.79,0.00046849,120]
[356532133,1742626240314,-500.0,0.00046849,120]
[356532134,1742626240326,-500.0,0.00046849,120]
[356532135,1742626240336,-500.0,0.00046849,120]
[356532136,1742626240345,-1114.31,0.00046849,120]
[356532137,1742626240355,-500.0,0.00046849,120]
[356532138,1742626240364,-500.0,0.00046849,120]
[356532140,1742626240374,-517.53762275,0.00046849,120]
[356532141,1742626240383,-500.0,0.00046849,120]
[356532142,1742626240393,-500.0,0.00046849,120]
[356532143,1742626240402,-500.0,0.00046849,120]
[356532144,1742626240412,-779.86,0.00046849,120]
[356532145,1742626240421,-528.83,0.00046849,120]
[356532146,1742626240430,-500.0,0.00046849,120]
[356532147,1742626240439,-500.0,0.00046849,120]
[356532148,1742626240448,-500.0,0.00046849,120]
[356532149,1742626240458,-500.0,0.00046849,120]
[356532150,1742626240472,-500.0,0.00046849,120]
[356532151,1742626240482,-653.77,0.00046849,120]
[356532152,1742626240492,-1237.38,0.00046849,120]
[356532153,1742626240502,-500.0,0.00046849,120]
[356532154,1742626240511,-500.0,0.00046849,120]
[356532155,1742626240521,-692.33,0.00046849,120]
[356532156,1742626240530,-500.0,0.00046849,120]
[356532157,1742626240540,-500.0,0.00046849,120]
[356532158,1742626240549,-500.0,0.00046849,120]
[356532159,1742626240560,-150.0,0.00046849,30]
[356532160,1742626240569,-565.04738249,0.00046849,120]
[356532161,1742626240578,-500.0,0.00046849,120]